fUST/lending_fUST_20240413
["ID","MTS","AMOUNT","RATE_DAILY","PERIOD"]
[322313689,1712947839846,-2664.45045838,0.0005,60]
[322313692,1712947839855,-17665.92270579,0.0005,60]
[322313695,1712947839870,-799.93995626,0.0005,60]
[322313697,1712947839879,-230.049489,0.00050469,2]
[322313701,1712947839890,-461.90478741,0.00050996,2]
[322313704,1712947839900,-2664.0,0.00051,60]
[322313707,1712947839910,-7235.55734474,0.00051,60]
[322313710,1712947839926,-8851.00792291,0.00051,60]
[322313713,1712947839938,-1577.43473235,0.00051,60]
[322313715,1712947839948,-799.0,0.00051,60]
[322313717,1712947839958,-160.410651,0.0005175,2]
[322313719,1712947839969,-154.31330905,0.00052491,60]
[322313721,1712947839979,-387.73521216,0.00053,90]
[322313723,1712947839988,-3162.0,0.0005338,10]
[322313724,1712947839998,-3606.287017,0.00053425,120]
[322313726,1712947840008,-416.1750862,0.00053978,30]
[322313728,1712947840018,-173.435028,0.0005399,2]
[322313730,1712947840030,-154.31330905,0.00054366,60]
[322313732,1712947840042,-155.89027091,0.0005458,60]
[322313734,1712947840051,-461.90478741,0.00054694,2]
[322313735,1712947840060,-4649.51849687,0.00054793,120]
[322313736,1712947840072,-2019.40710443,0.00054793,120]
[322313738,1712947840083,-1996.37079315,0.00054793,120]
[322313740,1712947840093,-500.0,0.00054794,120]
[322313742,1712947840102,-163.47926072,0.00054794,120]
[322313744,1712947840114,-336.52073928,0.00054794,120]
[322313746,1712947840123,-538.01728587,0.00054794,120]
[322313748,1712947840132,-500.0,0.00054794,120]
[322313750,1712947840141,-500.0,0.00054794,120]
[322313752,1712947840151,-500.0,0.00054794,120]
[322313754,1712947840160,-536.17016406,0.00054794,120]
[322313756,1712947840170,-500.0,0.00054794,120]
[322313758,1712947840179,-500.0,0.00054794,120]
[322313760,1712947840189,-345.37772374,0.00054794,120]
[322313762,1712947840198,-500.0,0.00054794,120]
[322313764,1712947840207,-573.77,0.00054794,120]
[322313766,1712947840216,-614.53340065,0.00054794,120]
[322313768,1712947840226,-392.56815727,0.00054794,120]
[322313770,1712947840235,-156.00968678,0.00054794,120]
[322313772,1712947840244,-216.41308701,0.00054794,120]
[322313774,1712947840254,-168.13327195,0.00054794,120]
[322313776,1712947840263,-500.0,0.00054794,120]
[322313778,1712947840272,-500.0,0.00054794,120]
[322313780,1712947840283,-500.0,0.00054794,120]
[322313782,1712947840292,-500.0,0.00054794,120]
[322313784,1712947840301,-304.36688897,0.00054794,120]
[322313786,1712947840310,-500.0,0.00054794,120]
[322313788,1712947840319,-500.0,0.00054794,120]
[322313790,1712947840329,-500.0,0.00054794,120]
[322313792,1712947840338,-500.0,0.00054794,120]
[322313794,1712947840348,-500.0,0.00054794,120]
[322313796,1712947840358,-500.0,0.00054794,120]
[322313798,1712947840367,-503.02102843,0.00054794,120]
[322313800,1712947840377,-500.0,0.00054794,120]
[322313802,1712947840388,-500.0,0.00054794,120]
[322313804,1712947840397,-500.0,0.00054794,120]
[322313806,1712947840407,-500.0,0.00054794,120]
[322313808,1712947840419,-500.0,0.00054794,120]
[322313810,1712947840429,-500.0,0.00054794,120]
[322313812,1712947840438,-500.0,0.00054794,120]
[322313815,1712947840448,-500.0,0.00054794,120]
[322313816,1712947840457,-500.0,0.00054794,120]
[322313819,1712947840466,-500.0,0.00054794,120]
[322313820,1712947840475,-500.0,0.00054794,120]
[322313822,1712947840485,-500.0,0.00054794,120]
[322313824,1712947840495,-500.0,0.00054794,120]
[322313827,1712947840505,-500.0,0.00054794,120]
[322313829,1712947840515,-695.6,0.00054794,120]
[322313831,1712947840524,-501.88774651,0.00054794,120]
[322313833,1712947840536,-501.09377229,0.00054794,120]
[322313835,1712947840546,-500.0,0.00054794,120]
[322313837,1712947840556,-500.0,0.00054794,120]
[322313838,1712947840565,-301.4684074,0.00054794,120]
[322313839,1712947840574,-500.0,0.00054794,120]
[322313840,1712947840584,-500.0,0.00054794,120]
[322313841,1712947840594,-500.0,0.00054794,120]
[322313842,1712947840603,-500.0,0.00054794,120]
[322313843,1712947840613,-500.0,0.00054794,120]
[322313844,1712947840623,-500.0,0.00054794,120]
[322313845,1712947840633,-500.0,0.00054794,120]
[322313846,1712947840642,-500.0,0.00054794,120]
[322313847,1712947840652,-500.0,0.00054794,120]
[322313848,1712947840662,-500.0,0.00054794,120]
[322313849,1712947840671,-500.0,0.00054794,120]
[322313850,1712947840680,-172.52135492,0.00054794,120]
[322313851,1712947840689,-501.14351935,0.00054794,120]
[322313852,1712947840698,-500.0,0.00054794,120]
[322313853,1712947840707,-500.0,0.00054794,120]
[322313855,1712947840718,-500.0,0.00054794,120]
[322313857,1712947840727,-361.1409828,0.00054794,120]
[322313859,1712947840736,-500.0,0.00054794,120]
[322313861,1712947840745,-500.0,0.00054794,120]
[322313863,1712947840754,-500.0,0.00054794,120]
[322313865,1712947840764,-500.0,0.00054794,120]
[322313867,1712947840774,-500.0,0.00054794,120]
[322313869,1712947840787,-500.0,0.00054794,120]
[322313871,1712947840797,-500.0,0.00054794,120]
[322313873,1712947840806,-1000.0,0.00054794,7]
[322313875,1712947840818,-500.0,0.00054794,120]
[322313877,1712947840828,-500.0,0.00054794,120]
[322313880,1712947840838,-500.0,0.00054794,120]
[322313882,1712947840848,-500.0,0.00054794,120]
[322313884,1712947840859,-500.0,0.00054794,120]
[322313886,1712947840874,-500.0,0.00054794,120]
[322313888,1712947840884,-500.0,0.00054794,120]
[322313890,1712947840893,-500.0,0.00054794,120]
[322313892,1712947840903,-500.0,0.00054794,120]
[322313894,1712947840912,-500.0,0.00054794,120]
[322313896,1712947840921,-151.15889793,0.00054794,120]
[322313898,1712947840931,-500.0,0.00054794,120]
[322313900,1712947840940,-500.0,0.00054794,120]
[322313901,1712947840950,-500.0,0.00054794,120]
[322313903,1712947840960,-500.0,0.00054794,120]
[322313905,1712947840970,-500.0,0.00054794,120]
[322313907,1712947840979,-500.0,0.00054794,120]
[322313909,1712947840988,-503.79762772,0.00054794,120]
[322313911,1712947840997,-500.0,0.00054794,120]
[322313913,1712947841007,-500.0,0.00054794,120]
[322313915,1712947841016,-155.48973338,0.00054794,120]
[322313917,1712947841026,-1275.06,0.00054794,120]
[322313919,1712947841037,-500.0,0.00054794,120]
[322313921,1712947841046,-500.0,0.00054794,120]
[322313923,1712947841055,-500.0,0.00054794,120]
[322313926,1712947841067,-500.0,0.00054794,120]
[322313928,1712947841076,-500.0,0.00054794,120]
[322313930,1712947841086,-500.0,0.00054794,120]
[322313932,1712947841098,-615.32062633,0.00054794,120]
[322313934,1712947841107,-500.0,0.00054794,120]
[322313936,1712947841117,-500.0,0.00054794,120]
[322313938,1712947841127,-500.0,0.00054794,120]
[322313940,1712947841136,-1020.89,0.00054794,120]
[322313942,1712947841146,-500.0,0.00054794,120]
[322313944,1712947841155,-500.0,0.00054794,120]
[322313945,1712947841164,-500.0,0.00054794,120]
[322313947,1712947841173,-500.0,0.00054794,120]
[322313950,1712947841183,-643.00166662,0.00054794,120]
[322313952,1712947841193,-500.0,0.00054794,120]
[322313954,1712947841202,-500.0,0.00054794,120]
[322313956,1712947841212,-500.0,0.00054794,120]
[322313958,1712947841221,-500.0,0.00054794,120]
[322313960,1712947841230,-500.0,0.00054794,120]
[322313962,1712947841239,-642.43,0.00054794,120]
[322313964,1712947841248,-500.0,0.00054794,120]
[322313965,1712947841257,-500.0,0.00054794,120]
[322313967,1712947841266,-500.0,0.00054794,120]
[322313969,1712947841276,-935.16,0.00054794,120]
[322313971,1712947841287,-500.0,0.00054794,120]
[322313973,1712947841297,-260.30017529,0.00054794,120]
[322313975,1712947841306,-500.0,0.00054794,120]
[322313977,1712947841315,-500.0,0.00054794,120]
[322313979,1712947841324,-500.0,0.00054794,120]
[322313981,1712947841334,-500.0,0.00054794,120]
[322313983,1712947841343,-500.0,0.00054794,120]
[322313985,1712947841353,-500.0,0.00054794,120]
[322313987,1712947841363,-527.88170902,0.00054794,120]
[322313989,1712947841372,-500.0,0.00054794,120]
[322313991,1712947841382,-500.0,0.00054794,120]
[322313993,1712947841391,-500.0,0.00054794,120]
[322313995,1712947841400,-500.0,0.00054794,120]
[322313997,1712947841410,-500.0,0.00054794,120]
[322313999,1712947841421,-500.0,0.00054794,120]
[322314001,1712947841431,-749.15,0.00054794,120]
[322314003,1712947841440,-503.87987524,0.00054794,120]
[322314005,1712947841449,-500.0,0.00054794,120]
[322314007,1712947841459,-500.0,0.00054794,120]
[322314009,1712947841469,-501.45372642,0.00054794,120]
[322314011,1712947841478,-500.0,0.00054794,120]
[322314013,1712947841487,-500.0,0.00054794,120]
[322314015,1712947841498,-500.0,0.00054794,120]
[322314017,1712947841507,-500.0,0.00054794,120]
[322314019,1712947841517,-500.0,0.00054794,120]
[322314021,1712947841527,-513.00692363,0.00054794,120]
[322314023,1712947841539,-500.0,0.00054794,120]
[322314025,1712947841550,-500.0,0.00054794,120]
[322314027,1712947841561,-500.0,0.00054794,120]
[322314029,1712947841571,-500.0,0.00054794,120]
[322314031,1712947841581,-500.0,0.00054794,120]
[322314033,1712947841592,-500.0,0.00054794,120]
[322314035,1712947841605,-500.0,0.00054794,120]
[322314037,1712947841614,-406.97162284,0.00054794,120]
[322314039,1712947841624,-500.0,0.00054794,120]
[322314041,1712947841634,-500.0,0.00054794,120]
[322314043,1712947841643,-500.0,0.00054794,120]
[322314045,1712947841652,-586.53,0.00054794,120]
[322314047,1712947841661,-500.0,0.00054794,120]
[322314049,1712947841670,-500.0,0.00054794,120]
[322314051,1712947841679,-504.48504271,0.00054794,120]
[322314053,1712947841689,-500.0,0.00054794,120]
[322314055,1712947841699,-500.0,0.00054794,120]
[322314057,1712947841708,-500.0,0.00054794,120]
[322314059,1712947841718,-500.0,0.00054794,120]
[322314061,1712947841727,-500.0,0.00054794,20]
[322314064,1712947841737,-503.26357152,0.00054794,120]
[322314066,1712947841746,-500.0,0.00054794,120]
[322314068,1712947841756,-500.0,0.00054794,120]
[322314069,1712947841765,-500.0,0.00054794,120]
[322314072,1712947841775,-500.0,0.00054794,120]
[322314073,1712947841787,-500.0,0.00054794,120]
[322314075,1712947841796,-500.0,0.00054794,120]
[322314077,1712947841805,-500.0,0.00054794,120]
[322314079,1712947841814,-505.18917879,0.00054794,120]
[322314081,1712947841823,-500.0,0.00054794,120]
[322314083,1712947841833,-614.80173114,0.00054794,120]
[322314085,1712947841842,-500.0,0.00054794,120]
[322314087,1712947841851,-500.0,0.00054794,120]
[322314089,1712947841863,-500.0,0.00054794,120]
[322314091,1712947841873,-500.0,0.00054794,120]
[322314093,1712947841882,-500.0,0.00054794,120]
[322314095,1712947841892,-1846.4,0.00054794,120]
[322314097,1712947841903,-500.0,0.00054794,120]
[322314099,1712947841913,-500.0,0.00054794,120]
[322314110,1712947842004,-1881.74,0.00054794,120]
[322314112,1712947842014,-500.0,0.00054794,120]
[322314114,1712947842024,-500.0,0.00054794,120]
[322314116,1712947842036,-503.48780437,0.00054794,120]
[322314118,1712947842046,-329.03838504,0.00054794,120]
[322314120,1712947842056,-513.31933967,0.00054794,120]
[322314122,1712947842066,-500.0,0.00054794,120]
[322314124,1712947842075,-518.94341513,0.00054794,120]
[322314126,1712947842084,-500.0,0.00054794,120]
[322314128,1712947842093,-500.0,0.00054794,120]
[322314130,1712947842102,-500.0,0.00054794,120]
[322314132,1712947842112,-941.4,0.00054794,120]
[322314134,1712947842122,-500.0,0.00054794,120]
[322314136,1712947842131,-864.01,0.00054794,120]
[322314138,1712947842141,-500.0,0.00054794,120]
[322314140,1712947842150,-1978.6,0.00054794,120]
[322314142,1712947842159,-1322.38,0.00054794,120]
[322314144,1712947842168,-500.0,0.00054794,120]
[322314146,1712947842177,-812.27,0.00054794,120]
[322314148,1712947842187,-500.0,0.00054794,120]
[322314150,1712947842196,-611.87652153,0.00054794,120]
[322314152,1712947842205,-500.0,0.00054794,120]
[322314154,1712947842215,-500.0,0.00054794,120]
[322314156,1712947842224,-500.0,0.00054794,120]
[322314158,1712947842234,-500.0,0.00054794,120]
[322314160,1712947842243,-500.0,0.00054794,120]
[322314162,1712947842252,-585.2681263,0.00054794,120]
[322314164,1712947842261,-1438.66,0.00054794,120]
[322314166,1712947842270,-647.94,0.00054794,120]
[322314168,1712947842280,-504.09434844,0.00054794,120]
[322314170,1712947842291,-162.44536166,0.00054794,120]
[322314172,1712947842300,-500.0,0.00054794,120]
[322314174,1712947842309,-500.0,0.00054794,120]
[322314176,1712947842318,-500.0,0.00054794,120]
[322314178,1712947842326,-500.0,0.00054794,120]
[322314180,1712947842336,-500.0,0.00054794,120]
[322314182,1712947842345,-500.0,0.00054794,120]
[322314184,1712947842354,-500.0,0.00054794,120]
[322314186,1712947842364,-500.0,0.00054794,120]
[322314188,1712947842373,-500.0,0.00054794,120]
[322314190,1712947842383,-500.0,0.00054794,120]
[322314192,1712947842392,-500.0,0.00054794,120]
[322314194,1712947842402,-500.0,0.00054794,120]
[322314196,1712947842411,-500.0,0.00054794,120]
[322314198,1712947842420,-500.0,0.00054794,120]
[322314200,1712947842429,-500.0,0.00054794,120]
[322314202,1712947842439,-500.0,0.00054794,120]
[322314204,1712947842448,-39470.36,0.00054794,120]
[322314206,1712947842457,-374.14526902,0.00054794,120]
[322314208,1712947842466,-771.16,0.00054794,120]
[322314210,1712947842475,-987.8,0.00054794,120]
[322314211,1712947842485,-500.0,0.00054794,120]
[322314213,1712947842495,-500.0,0.00054794,120]
[322314215,1712947842505,-225.54366451,0.00054794,120]
[322314217,1712947842515,-1000.0,0.00054794,120]
[322314219,1712947842525,-500.0,0.00054794,120]
[322314221,1712947842537,-2429.58,0.00054794,21]
[322314223,1712947842546,-300.0,0.00054794,7]
[322314225,1712947842556,-898.49,0.00054794,120]
[322314227,1712947842565,-500.0,0.00054794,120]
[322314229,1712947842574,-500.0,0.00054794,120]
[322314232,1712947842583,-500.0,0.00054794,120]
[322314234,1712947842593,-247.55776255,0.00054794,120]
[322314236,1712947842602,-500.0,0.00054794,120]
[322314238,1712947842611,-500.0,0.00054794,120]
[322314243,1712947842620,-500.0,0.00054794,120]
[322314247,1712947842629,-500.0,0.00054794,120]
[322314252,1712947842639,-500.0,0.00054794,120]
[322314258,1712947842648,-500.0,0.00054794,120]
[322314263,1712947842658,-500.0,0.00054794,120]
[322314269,1712947842667,-526.08765852,0.00054794,120]
[322314274,1712947842677,-500.0,0.00054794,120]
[322314281,1712947842689,-514.59037785,0.00054794,7]
[322314287,1712947842698,-500.0,0.00054794,120]
[322314291,1712947842707,-500.0,0.00054794,120]
[322314297,1712947842716,-500.0,0.00054794,120]
[322314303,1712947842725,-500.0,0.00054794,120]
[322314308,1712947842735,-1856.93,0.00054794,120]
[322314313,1712947842744,-171.83381504,0.00054794,120]
[322314318,1712947842753,-500.0,0.00054794,120]
[322314322,1712947842763,-477.67650499,0.00054794,120]
[322314326,1712947842772,-309.70578029,0.00054794,120]
[322314329,1712947842781,-3412.46,0.00054794,120]
[322314331,1712947842793,-7194.82,0.00054794,120]
[322314334,1712947842803,-500.0,0.00054794,120]
[322314337,1712947842812,-500.0,0.00054794,120]
[322314340,1712947842824,-500.0,0.00054794,120]
[322314343,1712947842833,-1268.06,0.00054794,120]
[322314346,1712947842843,-500.0,0.00054794,120]
[322314349,1712947842852,-1534.61,0.00054794,120]
[322314351,1712947842867,-738.75,0.00054794,120]
[322314353,1712947842876,-500.0,0.00054794,120]
[322314355,1712947842886,-1101.95,0.00054794,120]
[322314357,1712947842895,-500.0,0.00054794,120]
[322314359,1712947842904,-500.0,0.00054794,120]
[322314361,1712947842914,-500.0,0.00054794,60]
[322314363,1712947842923,-500.0,0.00054794,120]
[322314365,1712947842932,-669.62,0.00054794,120]
[322314367,1712947842942,-500.0,0.00054794,120]
[322314369,1712947842951,-9742.79,0.00054794,120]
[322314371,1712947842960,-500.0,0.00054794,120]
[322314373,1712947842970,-428.44114347,0.00054794,120]
[322314375,1712947842979,-500.0,0.00054794,120]
[322314377,1712947842989,-500.0,0.00054794,120]
[322314379,1712947842998,-374.30615538,0.00054794,120]
[322314381,1712947843008,-501.39891535,0.00054794,120]
[322314383,1712947843017,-836.68,0.00054794,120]
[322314385,1712947843027,-500.0,0.00054794,120]
[322314387,1712947843038,-500.0,0.00054794,120]
[322314389,1712947843047,-154.84515485,0.00054794,120]
[322314391,1712947843057,-3494.11,0.00054794,120]
[322314393,1712947843067,-2278.75,0.00054794,120]
[322314395,1712947843076,-1455.84,0.00054794,120]
[322314397,1712947843087,-202.8732917,0.00054878,60]
[322314399,1712947843097,-202.8732917,0.00054878,60]
[322314401,1712947843107,-154.31330905,0.00055133,120]
[322314403,1712947843117,-154.10451123,0.00055371,120]
[322314405,1712947843127,-230.049489,0.00056236,2]
[322314407,1712947843136,-512.60081208,0.00056712,120]
[322314409,1712947843145,-500.0,0.00056712,120]
[322314411,1712947843155,-500.0,0.00056712,120]
[322314413,1712947843164,-573.77,0.00056712,120]
[322314415,1712947843174,-500.0,0.00056712,120]
[322314417,1712947843183,-579.18041709,0.00056712,120]
[322314419,1712947843192,-583.04765244,0.00056712,120]
[322314421,1712947843201,-500.0,0.00056712,120]
[322314423,1712947843211,-500.0,0.00056712,120]
[322314425,1712947843220,-396.60431002,0.00056712,120]
[322314427,1712947843230,-500.0,0.00056712,120]
[322314429,1712947843239,-500.0,0.00056712,120]
[322314431,1712947843249,-500.0,0.00056712,120]
[322314433,1712947843258,-695.6,0.00056712,120]
[322314435,1712947843268,-502.47706265,0.00056712,120]
[322314437,1712947843278,-500.0,0.00056712,120]
[322314439,1712947843289,-518.20469114,0.00056712,120]
[322314441,1712947843300,-500.0,0.00056712,120]
[322314443,1712947843310,-500.0,0.00056712,120]
[322314445,1712947843319,-500.0,0.00056712,120]
[322314447,1712947843328,-500.0,0.00056712,120]
[322314449,1712947843338,-530.23233111,0.00056712,120]
[322314451,1712947843348,-500.0,0.00056712,120]
[322314453,1712947843358,-500.0,0.00056712,120]
[322314455,1712947843367,-500.0,0.00056712,120]
[322314457,1712947843377,-500.0,0.00056712,120]
[322314459,1712947843386,-500.0,0.00056712,120]
[322314461,1712947843396,-500.0,0.00056712,120]
[322314463,1712947843405,-500.0,0.00056712,120]
[322314465,1712947843414,-1000.0,0.00056712,7]
[322314467,1712947843425,-500.0,0.00056712,120]
[322314469,1712947843434,-583.52452806,0.00056712,120]
[322314471,1712947843443,-500.0,0.00056712,120]
[322314473,1712947843453,-500.0,0.00056712,120]
[322314475,1712947843462,-500.0,0.00056712,120]
[322314477,1712947843472,-500.0,0.00056712,120]
[322314479,1712947843481,-500.0,0.00056712,120]
[322314481,1712947843491,-500.0,0.00056712,120]
[322314483,1712947843501,-500.0,0.00056712,120]
[322314485,1712947843511,-500.0,0.00056712,120]
[322314487,1712947843521,-392.7392275,0.00056712,120]
[322314489,1712947843531,-422.97323723,0.00056712,120]
[322314491,1712947843543,-370.2948546,0.00056712,120]
[322314493,1712947843553,-1275.06,0.00056712,120]
[322314495,1712947843563,-500.0,0.00056712,120]
[322314497,1712947843573,-500.0,0.00056712,120]
[322314499,1712947843582,-500.0,0.00056712,120]
[322314501,1712947843591,-500.0,0.00056712,120]
[322314503,1712947843601,-500.0,0.00056712,120]
[322314505,1712947843610,-500.0,0.00056712,120]
[322314507,1712947843620,-500.0,0.00056712,120]
[322314509,1712947843629,-500.0,0.00056712,120]
[322314511,1712947843638,-1020.89,0.00056712,120]
[322314513,1712947843647,-215.65850247,0.00056712,120]
[322314515,1712947843657,-615.32305045,0.00056712,120]
[322314517,1712947843666,-500.0,0.00056712,120]
[322314519,1712947843675,-500.0,0.00056712,120]
[322314521,1712947843685,-500.0,0.00056712,120]
[322314523,1712947843695,-500.0,0.00056712,120]
[322314525,1712947843705,-500.0,0.00056712,120]
[322314527,1712947843714,-500.0,0.00056712,120]
[322314529,1712947843724,-500.0,0.00056712,120]
[322314530,1712947843733,-642.43,0.00056712,120]
[322314531,1712947843741,-500.0,0.00056712,120]
[322314532,1712947843750,-500.0,0.00056712,120]
[322314533,1712947843759,-500.0,0.00056712,120]
[322314534,1712947843768,-935.16,0.00056712,120]
[322314535,1712947843778,-500.0,0.00056712,120]
[322314536,1712947843789,-500.0,0.00056712,120]
[322314537,1712947843798,-500.0,0.00056712,120]
[322314538,1712947843807,-500.0,0.00056712,120]
[322314539,1712947843817,-472.16274605,0.00056712,120]
[322314540,1712947843826,-500.0,0.00056712,120]
[322314541,1712947843835,-500.0,0.00056712,120]
[322314542,1712947843844,-500.0,0.00056712,120]
[322314543,1712947843853,-500.0,0.00056712,120]
[322314545,1712947843864,-88.10785493,0.00056712,120]
[322314548,1712947843883,-661.04214507,0.00056712,120]
[322314550,1712947843892,-230.05888057,0.00056712,120]
[322314552,1712947843903,-500.0,0.00056712,120]
[322314553,1712947843912,-500.0,0.00056712,120]
[322314555,1712947843921,-500.0,0.00056712,120]
[322314557,1712947843931,-347.84297722,0.00056712,120]
[322314559,1712947843941,-500.0,0.00056712,120]
[322314561,1712947843951,-500.0,0.00056712,120]
[322314563,1712947843960,-500.0,0.00056712,120]
[322314565,1712947843969,-500.0,0.00056712,120]
[322314574,1712947844049,-315.82017064,0.00056712,120]
[322314576,1712947844060,-500.0,0.00056712,120]
[322314578,1712947844070,-297.1663235,0.00056712,120]
[322314580,1712947844080,-500.0,0.00056712,120]
[322314582,1712947844089,-500.0,0.00056712,120]
[322314584,1712947844099,-500.0,0.00056712,120]
[322314586,1712947844109,-500.0,0.00056712,120]
[322314588,1712947844119,-586.53,0.00056712,120]
[322314590,1712947844128,-252.61919789,0.00056712,120]
[322314592,1712947844138,-500.0,0.00056712,120]
[322314594,1712947844147,-500.0,0.00056712,120]
[322314596,1712947844156,-500.0,0.00056712,120]
[322314598,1712947844166,-500.0,0.00056712,120]
[322314600,1712947844175,-500.0,0.00056712,120]
[322314602,1712947844183,-500.0,0.00056712,120]
[322314604,1712947844193,-501.64572357,0.00056712,120]
[322314606,1712947844202,-500.0,0.00056712,120]
[322314608,1712947844213,-500.0,0.00056712,120]
[322314610,1712947844222,-500.0,0.00056712,120]
[322314612,1712947844232,-500.0,0.00056712,120]
[322314614,1712947844241,-500.0,0.00056712,120]
[322314616,1712947844250,-500.0,0.00056712,120]
[322314618,1712947844259,-500.9808839,0.00056712,120]
[322314620,1712947844268,-500.0,0.00056712,120]
[322314621,1712947844277,-500.0,0.00056712,120]
[322314623,1712947844288,-1846.4,0.00056712,120]
[322314625,1712947844297,-500.0,0.00056712,120]
[322314627,1712947844306,-516.85206975,0.00056712,120]
[322314630,1712947844316,-1881.74,0.00056712,120]
[322314633,1712947844325,-502.06828708,0.00056712,120]
[322314636,1712947844335,-500.0,0.00056712,120]
[322314640,1712947844345,-500.0,0.00056712,120]
[322314644,1712947844354,-941.4,0.00056712,120]
[322314647,1712947844363,-500.0,0.00056712,120]
[322314650,1712947844374,-864.01,0.00056712,120]
[322314653,1712947844384,-637.09408538,0.00056712,120]
[322314656,1712947844393,-1978.6,0.00056712,120]
[322314659,1712947844403,-1322.38,0.00056712,120]
[322314662,1712947844413,-500.0,0.00056712,120]
[322314665,1712947844422,-812.27,0.00056712,120]
[322314668,1712947844431,-500.0,0.00056712,120]
[322314671,1712947844441,-500.0,0.00056712,120]
[322314674,1712947844450,-1438.66,0.00056712,120]
[322314677,1712947844459,-647.94,0.00056712,120]
[322314679,1712947844469,-568.2795183,0.00056712,120]
[322314681,1712947844478,-500.0,0.00056712,120]
[322314685,1712947844488,-571.83883088,0.00056712,120]
[322314687,1712947844497,-500.0,0.00056712,120]
[322314690,1712947844507,-500.0,0.00056712,120]
[322314693,1712947844517,-500.0,0.00056712,120]
[322314699,1712947844526,-500.0,0.00056712,120]
[322314708,1712947844538,-500.0,0.00056712,120]
[322314720,1712947844548,-577.3584247,0.00056712,120]
[322314730,1712947844558,-500.0,0.00056712,120]
[322314741,1712947844568,-500.0,0.00056712,120]
[322314751,1712947844579,-500.0,0.00056712,120]
[322314758,1712947844588,-39470.36,0.00056712,120]
[322314767,1712947844598,-771.16,0.00056712,120]
[322314774,1712947844607,-987.8,0.00056712,120]
[322314784,1712947844619,-500.0,0.00056712,120]
[322314792,1712947844630,-381.13798679,0.00056712,120]
[322314798,1712947844640,-1000.0,0.00056712,120]
[322314805,1712947844650,-500.0,0.00056712,120]
[322314813,1712947844660,-2429.58,0.00056712,21]
[322314819,1712947844670,-300.0,0.00056712,7]
[322314827,1712947844680,-898.49,0.00056712,120]
[322314834,1712947844690,-288.52461699,0.00056712,120]
[322314843,1712947844700,-500.0,0.00056712,120]
[322314850,1712947844710,-500.0,0.00056712,120]
[322314858,1712947844723,-500.0,0.00056712,120]
[322314867,1712947844733,-500.0,0.00056712,120]
[322314873,1712947844743,-500.0,0.00056712,120]
[322314881,1712947844754,-500.0,0.00056712,120]
[322314890,1712947844764,-1856.93,0.00056712,120]
[322314898,1712947844776,-3412.46,0.00056712,120]
[322314907,1712947844787,-7194.82,0.00056712,120]
[322314916,1712947844798,-500.0,0.00056712,120]
[322314926,1712947844808,-500.0,0.00056712,120]
[322314933,1712947844820,-500.0,0.00056712,120]
[322314939,1712947844830,-1268.06,0.00056712,120]
[322314950,1712947844840,-500.0,0.00056712,120]
[322314959,1712947844850,-1534.61,0.00056712,120]
[322314968,1712947844864,-738.75,0.00056712,120]
[322314976,1712947844873,-1101.95,0.00056712,120]